bitfinex/quotes_SOLUSD_20251223
["timestamp","ask_amount","ask_price","bid_price","bid_amount"]
[1766486088766,33.12880145,124.52,124.49,0.7]
[1766486088961,8.02965829,124.54,124.5,2.9769544]
[1766486089167,18.46733125,124.54,124.51,0.72]
[1766486093370,10.43767296,124.54,124.52,0.72]
[1766486093549,25.78554644,124.56,124.52,0.72]
[1766486093750,0.12,124.55,124.52,0.72]
[1766486095715,33.246265,124.56,124.52,0.72]
[1766486095974,25.09767296,124.56,124.53,0.72]
[1766486097071,28.07462736,124.56,124.53,0.72]
[1766486097674,36.10312193,124.56,124.53,0.72]
[1766486098272,33.12616753,124.56,124.53,0.72]
[1766486099582,25.09767296,124.56,124.53,0.72]
[1766486099877,25.09767296,124.56,124.54,0.72]
[1766486099878,10.43767296,124.56,124.54,0.72]
[1766486100478,22.68739309,124.58,124.55,0.72]
[1766486100983,26.32434749,124.58,124.55,0.72]
[1766486101789,2.9769544,124.56,124.52,0.72]
[1766486102162,11.66499331,124.57,124.53,0.72]
[1766486102368,2.9769544,124.55,124.53,0.72]
[1766486102777,2.9769544,124.54,124.51,0.72]
[1766486103207,3.6369544,124.55,124.51,0.72]
[1766486103988,11.66595945,124.55,124.51,0.72]
[1766486104797,8.68900505,124.55,124.51,0.72]
[1766486104982,11.66595945,124.55,124.51,0.72]
[1766486109191,11.70595945,124.55,124.51,0.72]
[1766486109491,0.7,124.53,124.5,0.69]
[1766486109678,3.6769544,124.52,124.49,15.35]
[1766486109871,3.6769544,124.52,124.49,0.69]
[1766486111182,11.70789923,124.52,124.49,0.69]
[1766486111383,8.73094483,124.52,124.49,0.69]
[1766486112369,0.7,124.51,124.47,11.0109368]
[1766486112688,0.7,124.51,124.48,0.69]
[1766486113066,3.6769544,124.51,124.48,0.69]
[1766486113268,0.7,124.51,124.48,0.69]
[1766486114292,0.7,124.51,124.46,48.35939269]
[1766486114293,0.7,124.5,124.46,48.35939269]
[1766486114501,0.7,124.5,124.47,0.69]
[1766486114706,21.44557219,124.51,124.49,3.6669544]
[1766486115000,10.43767296,124.51,124.49,0.69]
[1766486118803,18.46936472,124.51,124.49,0.69]
[1766486118985,19.16936472,124.51,124.49,0.69]
[1766486126590,19.16936472,124.51,124.47,2.9769544]
[1766486126790,22.14631912,124.51,124.48,0.69]
[1766486131605,21.44631912,124.51,124.46,14.66]
[1766486131900,0.7,124.49,124.46,15.35]
[1766486132111,3.6769544,124.49,124.46,0.69]
[1766486132299,0.7,124.49,124.46,0.69]
[1766486132888,8.70270128,124.5,124.46,2.9769544]
[1766486133092,8.70270128,124.5,124.47,0.67]
[1766486138006,11.67965568,124.5,124.47,0.67]
[1766486138211,2.9769544,124.49,124.47,0.67]
[1766486139206,11.67965568,124.5,124.47,0.67]
[1766486140115,8.70270128,124.5,124.47,0.67]
[1766486140319,2.9769544,124.49,124.47,0.67]
[1766486141610,8.70270128,124.5,124.47,0.67]
[1766486141811,2.9769544,124.49,124.47,0.67]
[1766486144097,8.70270128,124.5,124.47,0.67]
[1766486144298,1.90593741,124.49,124.47,0.67]
[1766486145411,10.60863869,124.5,124.47,0.67]
[1766486145720,10.60835646,124.5,124.47,0.67]
[1766486149425,8.70241905,124.5,124.47,0.67]
[1766486149598,10.60835646,124.5,124.47,0.67]
[1766486153028,8.70241905,124.5,124.47,0.67]
[1766486153230,10.60835646,124.5,124.47,0.67]
[1766486157134,8.70241905,124.5,124.47,0.67]
[1766486167145,8.03241905,124.5,124.47,0.67]
[1766486169952,7.19716983,124.56,124.48,1.90593741]
[1766486170156,8.02954873,124.54,124.51,0.69]
[1766486170826,8.72954873,124.54,124.51,0.69]
[1766486176540,0.7,124.56,124.53,2.52593741]
[1766486176749,0.7,124.56,124.54,0.62]
[1766486177048,10.43767296,124.56,124.54,0.62]
[1766486178353,10.43767296,124.56,124.54,2.52593741]
[1766486178662,0.7,124.57,124.54,1.90593741]
[1766486178960,8.02727623,124.58,124.56,0.62]
[1766486179753,8.72727623,124.58,124.56,0.62]
[1766486181151,0.7,124.58,124.56,0.62]
[1766486181449,10.43767296,124.59,124.56,0.62]
[1766486181651,11.13767296,124.59,124.56,0.62]
[1766486182157,20.37007998,124.59,124.56,0.62]
[1766486182367,21.07007998,124.59,124.56,0.62]
[1766486183272,19.16414257,124.59,124.56,0.62]
[1766486185733,11.13767296,124.59,124.56,0.62]
[1766486185956,21.07002074,124.59,124.56,0.62]
[1766486186155,19.16408333,124.59,124.56,0.62]
[1766486193079,0.68,124.58,124.54,0.62]
[1766486193375,0.68,124.58,124.55,2.52593741]
[1766486193578,11.11767296,124.59,124.56,0.62]
[1766486197180,19.14401311,124.59,124.56,0.62]
[1766486197475,0.66,124.58,124.55,1.90593741]
[1766486197664,0.66,124.58,124.55,2.52593741]
[1766486198983,18.46401311,124.59,124.56,0.62]
[1766486199170,11.09767296,124.59,124.56,2.52593741]
[1766486204186,19.12400951,124.59,124.56,0.62]
[1766486204487,0.66,124.58,124.56,0.62]
[1766486207388,19.12400951,124.59,124.56,0.62]
[1766486207882,8.68633655,124.59,124.56,0.62]
[1766486209191,0.66,124.58,124.56,0.62]
[1766486212766,0.66,124.58,124.55,2.97286449]
[1766486212966,0.66,124.58,124.55,3.59286449]
[1766486220894,0.66,124.58,124.56,0.62]
[1766486229481,0.68,124.59,124.56,0.62]
[1766486230093,0.68,124.59,124.53,0.62]
[1766486230094,0.68,124.58,124.53,0.62]
[1766486230296,0.68,124.57,124.53,0.62]
[1766486232879,0.68,124.56,124.53,0.62]
[1766486233204,0.68,124.56,124.52,23.31051948]
[1766486234016,0.68,124.56,124.53,0.62]
[1766486236315,0.68,124.56,124.52,23.31051948]
[1766486236517,0.68,124.56,124.53,0.62]
[1766486237587,0.68,124.57,124.54,0.62]
[1766486237901,0.68,124.57,124.55,0.62]
[1766486239499,0.68,124.58,124.55,0.62]
[1766486243715,0.68,124.58,124.54,0.62]
[1766486245489,0.68,124.57,124.54,0.62]
[1766486277130,0.68,124.57,124.54,2.52315669]
[1766486281353,0.68,124.57,124.54,0.62]
[1766486298968,0.68,124.57,124.54,2.52315669]
[1766486299273,0.71,124.59,124.56,0.62]
[1766486299446,8.73635351,124.59,124.56,0.62]
[1766486299948,0.71,124.58,124.56,0.62]
[1766486300145,0.71,124.58,124.54,10.55249056]
[1766486301464,0.71,124.57,124.53,24.59319086]
[1766486301650,0.71,124.57,124.53,25.21319086]
[1766486310307,0.71,124.57,124.53,23.31003417]
[1766486310597,0.71,124.57,124.53,25.21319086]
[1766486312717,0.71,124.57,124.53,23.31003417]
[1766486313011,0.71,124.57,124.53,25.21319086]
[1766486315107,0.71,124.57,124.53,23.31003417]
[1766486315288,0.71,124.56,124.53,14.66]
[1766486315589,0.71,124.56,124.52,17.18315669]
[1766486315997,0.71,124.56,124.52,2.52315669]
[1766486316395,0.71,124.56,124.52,17.18315669]
[1766486317814,8.73840343,124.56,124.52,15.28]
[1766486318109,0.72,124.55,124.52,17.18315669]
[1766486318883,0.72,124.57,124.53,2.52315669]
[1766486319083,0.72,124.56,124.53,2.52315669]
[1766486325910,0.72,124.56,124.53,0.62]
[1766486331525,0.72,124.56,124.53,11.00408893]
[1766486331698,0.72,124.56,124.54,0.62]
[1766486332809,10.43767296,124.57,124.54,0.62]
[1766486333009,11.15767296,124.57,124.54,0.62]
[1766486333220,0.72,124.57,124.54,0.62]
[1766486337338,14.76,124.6,124.57,0.62]
[1766486337339,0.82,124.6,124.57,0.62]
[1766486337521,0.82,124.6,124.57,3.59405925]
[1766486338329,8.84584145,124.6,124.57,3.59405925]
[1766486338533,0.72,124.59,124.57,3.59405925]
[1766486338828,0.72,124.59,124.57,2.97405925]
[1766486340440,0.1,124.6,124.58,0.62]
[1766486340749,0.1,124.61,124.59,3.49405925]
[1766486341910,0.72,124.6,124.56,8.02797133]
[1766486342112,0.72,124.6,124.57,15.18]
[1766486346051,3.69405925,124.6,124.57,15.18]
[1766486348566,0.72,124.6,124.57,15.18]
[1766486351061,0.72,124.6,124.57,14.66]
[1766486352840,0.72,124.6,124.57,15.18]
[1766486353443,0.72,124.6,124.57,18.15405925]
[1766486354946,0.72,124.6,124.57,15.18]
[1766486355147,0.72,124.6,124.57,14.66]
[1766486355465,0.72,124.6,124.56,25.66203058]
[1766486355763,0.72,124.6,124.56,26.18203058]
[1766486356242,0.68,124.58,124.55,8.02860692]
[1766486356442,0.68,124.58,124.55,22.68860692]
[1766486356845,0.68,124.58,124.54,23.5668944]
[1766486356846,2.97405925,124.58,124.54,8.54945196]
[1766486357072,0.68,124.57,124.54,22.68945196]
[1766486357449,0.68,124.57,124.54,23.20945196]
[1766486358772,0.68,124.56,124.54,14.66]
[1766486358983,0.68,124.56,124.53,15.18]
[1766486359870,0.68,124.55,124.52,0.52]
[1766486360055,0.68,124.55,124.52,15.18]
[1766486362875,0.68,124.55,124.51,2.97405925]
[1766486363072,0.68,124.54,124.51,18.15405925]
[1766486365288,0.68,124.54,124.51,14.66]
[1766486366359,0.68,124.54,124.51,25.66551943]
[1766486366566,0.68,124.54,124.51,26.18551943]
[1766486366768,0.68,124.55,124.52,0.52]
[1766486366968,0.68,124.55,124.52,3.49405925]
[1766486369700,0.68,124.55,124.52,11.52489084]
[1766486374088,0.68,124.55,124.52,8.55083159]
[1766486374383,0.68,124.55,124.52,0.52]
[1766486375268,0.68,124.54,124.52,0.52]
[1766486376492,0.68,124.54,124.51,8.03118865]
[1766486376666,0.68,124.54,124.51,22.69118865]
[1766486376870,0.68,124.54,124.51,23.21118865]
[1766486377586,0.68,124.54,124.5,0.52]
[1766486377794,0.7,124.55,124.52,3.49405925]
[1766486378890,42.584388,124.57,124.53,3.49405925]
[1766486379068,0.7,124.56,124.53,3.49405925]
[1766486386693,0.7,124.56,124.54,2.97405925]
[1766486386996,0.7,124.56,124.54,3.49405925]
[1766486387382,0.7,124.56,124.54,2.97405925]
[1766486387889,15.36,124.58,124.55,3.49405925]
[1766486388100,0.7,124.58,124.56,2.97405925]
[1766486388994,0.7,124.58,124.55,3.49405925]
[1766486390008,0.7,124.58,124.55,2.42266884]
[1766486392016,0.8,124.61,124.58,0.52]
[1766486392313,0.8,124.61,124.58,1.90266884]
[1766486392785,0.8,124.61,124.59,3.21427136]
[1766486394815,0.1,124.61,124.59,5.6369402]
[1766486396011,0.1,124.61,124.6,3.21401309]
[1766486396213,0.8,124.61,124.6,3.21401309]
[1766486396608,0.8,124.61,124.58,23.20676837]
[1766486396808,0.8,124.61,124.59,8.12381761]
[1766486398314,2.00266884,124.61,124.59,8.12381761]
[1766486398510,0.7,124.6,124.58,14.66]
[1766486398822,0.7,124.6,124.58,22.78381761]
[1766486400020,0.7,124.6,124.58,8.12381761]
[1766486402519,0.7,124.6,124.58,10.54648645]
[1766486403208,0.7,124.6,124.58,8.12381761]
[1766486408739,0.7,124.6,124.57,15.18]
[1766486408920,0.7,124.6,124.57,14.66]
[1766486409235,0.7,124.6,124.56,10.54715926]
[1766486409432,0.7,124.6,124.56,15.18]
[1766486409433,0.72,124.58,124.56,15.18]
[1766486409638,0.72,124.58,124.56,14.66]
[1766486414759,0.72,124.58,124.56,15.18]
[1766486420128,0.72,124.6,124.57,0.52]
[1766486421046,0.72,124.6,124.56,17.08266884]
[1766486422238,8.02588437,124.6,124.56,15.18]
[1766486422446,0.72,124.59,124.56,17.08266884]
[1766486422646,0.72,124.59,124.56,15.18]
[1766486423149,0.72,124.59,124.56,23.20588437]
[1766486424539,0.72,124.59,124.56,15.18]
[1766486429772,0.72,124.59,124.56,17.08266884]
[1766486433571,0.1,124.61,124.57,1.90266884]
[1766486433774,0.79,124.61,124.58,0.52]
[1766486433969,0.79,124.61,124.57,2.42266884]
[1766486434168,0.79,124.61,124.57,3.73427136]
[1766486435352,0.79,124.61,124.57,13.66422]
[1766486436668,0.79,124.61,124.57,11.76155116]
[1766486436876,0.79,124.61,124.57,13.66422]
[1766486440578,0.79,124.61,124.57,11.76155116]
[1766486440772,0.79,124.61,124.57,13.66422]
[1766486444664,0.79,124.61,124.57,11.76155116]
[1766486444863,0.79,124.61,124.57,13.66422]
[1766486447286,0.79,124.61,124.57,5.6369402]
[1766486449988,0.79,124.61,124.57,6.70641263]
[1766486451590,0.79,124.61,124.57,3.73427136]
[1766486451776,0.79,124.61,124.57,6.70641263]
[1766486453686,0.79,124.61,124.57,3.73427136]
[1766486456610,0.79,124.61,124.57,6.70641263]
[1766486457694,8.12539561,124.61,124.57,6.70641263]
[1766486457883,0.71,124.6,124.57,3.49214127]
[1766486458276,0.71,124.6,124.57,0.52]
[1766486463598,0.71,124.6,124.58,0.52]
[1766486464185,0.71,124.6,124.57,2.97214127]
[1766486464387,0.71,124.6,124.57,3.49214127]
[1766486468507,0.71,124.6,124.57,0.52]
[1766486469003,0.1,124.61,124.57,8.02737055]
[1766486469188,0.1,124.61,124.57,0.52]
[1766486469189,0.7,124.6,124.57,0.52]
[1766486469891,28.41220263,124.64,124.57,0.52]
[1766486469892,0.1,124.73,124.63,3.97214127]
[1766486470091,0.1,124.73,124.64,18.66]
[1766486470302,0.1,124.73,124.68,2.97214127]
[1766486470502,0.1,124.73,124.69,14.66]
[1766486470811,0.1,124.73,124.69,22.67961582]
[1766486471208,3.07214127,124.73,124.7,8.01615538]
[1766486471711,0.7,124.72,124.7,8.01615538]
[1766486472292,0.7,124.72,124.7,5.85615538]
[1766486472612,0.7,124.72,124.7,5.71615538]
[1766486473112,0.1,124.73,124.7,21.03615538]
[1766486473410,0.1,124.73,124.7,18.29214127]
[1766486473704,0.1,124.73,124.71,13.40981423]
[1766486477897,0.1,124.73,124.71,14.06981423]
[1766486478111,0.1,124.73,124.72,0.66]
[1766486478508,0.1,124.73,124.72,14.06981423]
[1766486484935,0.1,124.73,124.72,0.66]
[1766486493146,0.1,124.73,124.71,10.9906489]
[1766486493147,21.24820567,124.76,124.7,8.01887701]
[1766486493344,2.97214127,124.74,124.72,0.66]
[1766486493852,2.97214127,124.73,124.7,0.66]
[1766486494033,2.97214127,124.73,124.7,15.3]
[1766486495248,2.97214127,124.72,124.7,0.66]
[1766486495450,2.97214127,124.71,124.69,15.3]
[1766486495857,2.97214127,124.71,124.68,8.02023239]
[1766486495858,2.97214127,124.7,124.68,14.64]
[1766486496035,2.97214127,124.7,124.67,0.66]
[1766486500440,2.97214127,124.7,124.66,0.66]
[1766486501358,2.97214127,124.69,124.65,14.64]
[1766486501546,2.97214127,124.67,124.64,0.66]
[1766486502053,2.97214127,124.66,124.64,0.66]
[1766486502242,2.97214127,124.67,124.64,0.66]
[1766486505056,2.97214127,124.68,124.64,0.66]
[1766486512074,1.90035186,124.68,124.64,0.66]
[1766486514673,9.92084453,124.69,124.65,0.66]
[1766486514862,1.90035186,124.69,124.65,0.66]
[1766486515774,1.90035186,124.68,124.65,0.66]
[1766486516958,1.90035186,124.68,124.66,0.66]
[1766486518773,1.90035186,124.69,124.66,0.66]
[1766486521162,9.92033152,124.69,124.66,0.66]
[1766486525360,9.91959805,124.7,124.66,0.66]
[1766486529397,8.01924619,124.7,124.66,0.66]
[1766486529599,9.91959805,124.7,124.66,0.66]
[1766486531272,1.90035186,124.69,124.66,0.66]
[1766486533405,9.92024599,124.69,124.66,0.66]
[1766486533581,1.90035186,124.68,124.66,0.66]
[1766486536087,8.01989413,124.69,124.66,0.66]
[1766486536088,9.92024599,124.69,124.66,0.66]
[1766486547922,9.9198368,124.7,124.66,0.66]
[1766486551528,1.90035186,124.69,124.66,0.66]
[1766486552699,9.9198368,124.7,124.66,0.66]
[1766486553329,1.90035186,124.69,124.66,0.66]
[1766486566253,8.01948494,124.7,124.66,0.66]
[1766486566456,1.90035186,124.69,124.66,0.66]
[1766486571260,9.9198368,124.7,124.66,0.66]
[1766486572039,2.96844218,124.69,124.66,0.66]
[1766486574165,10.98792712,124.7,124.66,0.66]
[1766486583372,8.01948494,124.7,124.66,0.66]
[1766486583557,2.96844218,124.69,124.66,0.66]
[1766486584253,10.98792712,124.7,124.66,0.66]
[1766486586271,10.43767296,124.71,124.66,8.02147362]
[1766486586482,10.43767296,124.71,124.67,0.69]
[1766486586655,4.18988408,124.74,124.69,0.69]
[1766486586977,2.96844218,124.75,124.7,0.69]
[1766486587475,2.96844218,124.74,124.7,0.69]
[1766486587776,18.45341709,124.76,124.7,0.69]
[1766486587976,2.96844218,124.74,124.7,0.69]
[1766486588156,2.96844218,124.75,124.7,0.69]
[1766486588359,10.98450662,124.75,124.7,8.70906148]
[1766486588678,10.98450662,124.75,124.71,0.69]
[1766486589480,2.96844218,124.75,124.71,0.69]
[1766486591073,10.43767296,124.76,124.72,0.69]
[1766486593261,14.84167867,124.78,124.73,2.96844218]
[1766486593451,14.84167867,124.78,124.74,0.69]
[1766486594098,4.40400571,124.78,124.75,0.69]
[1766486594670,4.40400571,124.78,124.76,0.69]
[1766486594858,4.40400571,124.78,124.75,14.64]
[1766486594859,15.3866105,124.78,124.75,14.64]
[1766486595067,15.3866105,124.78,124.75,15.33]
[1766486595258,4.40400571,124.78,124.75,0.69]
[1766486595559,7.37244789,124.78,124.75,0.69]
[1766486596282,15.38660769,124.78,124.75,0.69]
[1766486596764,2.96844218,124.77,124.75,0.69]
[1766486598572,15.38660769,124.78,124.75,0.69]
[1766486598784,12.41816551,124.78,124.75,0.69]
[1766486598987,15.38660769,124.78,124.75,0.69]
[1766486599335,10.43767296,124.75,124.71,0.69]
[1766486599608,2.96844218,124.72,124.69,0.69]
[1766486604987,18.45470923,124.74,124.69,0.69]
[1766486605387,2.96844218,124.73,124.69,0.69]
[1766486611284,10.98590467,124.73,124.69,0.69]
[1766486617495,18.45435101,124.74,124.7,0.66]
[1766486620299,10.43767296,124.74,124.7,0.66]
[1766486621782,10.43767296,124.74,124.71,0.68]
[1766486623289,18.45440685,124.74,124.71,0.68]
[1766486626806,21.42284903,124.74,124.71,0.68]
[1766486631107,8.01673389,124.74,124.71,0.68]
[1766486632611,10.98477695,124.75,124.71,0.68]
[1766486634116,9.91445209,124.75,124.71,0.68]
[1766486634712,1.89811732,124.76,124.71,8.01854002]
[1766486634910,1.89811732,124.76,124.72,0.68]
[1766486637410,1.89811732,124.76,124.72,8.01790831]
[1766486637616,1.89811732,124.76,124.73,0.68]
[1766486638214,34.99095087,124.77,124.73,0.68]
[1766486639715,10.43767296,124.77,124.74,0.68]
[1766486641920,1.89811732,124.75,124.71,0.68]
[1766486642102,18.45248753,124.77,124.71,0.68]
[1766486642103,1.89811732,124.74,124.71,0.68]
[1766486644019,8.01645054,124.75,124.71,0.68]
[1766486644207,1.89811732,124.74,124.71,0.68]
[1766486645114,9.91456786,124.75,124.71,0.68]
[1766486654324,1.89811732,124.74,124.71,0.68]
[1766486654904,1.89811732,124.74,124.7,8.729216]
[1766486655314,1.89811732,124.71,124.68,0.71]
[1766486661114,1.89811732,124.7,124.68,0.71]
[1766486661315,1.89811732,124.7,124.66,8.02157649]
[1766486661524,1.89811732,124.7,124.67,0.71]
[1766486662214,8.01864495,124.71,124.67,0.71]
[1766486662410,1.89811732,124.7,124.67,0.71]
[1766486663536,9.91676227,124.71,124.67,0.71]
[1766486667542,1.89811732,124.7,124.67,0.71]
[1766486672841,1.89811732,124.7,124.66,8.02157649]
[1766486673043,12.33579028,124.69,124.67,0.65]
[1766486673531,10.43767296,124.69,124.67,0.65]
[1766486673724,12.33579028,124.69,124.67,0.65]
[1766486679142,20.35573333,124.69,124.67,0.65]
[1766486679445,20.35573333,124.69,124.64,22.6628095]
[1766486679647,20.35573333,124.69,124.65,0.67]
[1766486681339,9.91806037,124.69,124.65,0.67]
[1766486681544,8.01994305,124.69,124.65,0.67]
[1766486681850,9.91765311,124.7,124.65,0.67]
[1766486684050,9.91765311,124.7,124.65,8.69233981]
[1766486684240,9.91765311,124.7,124.66,0.67]
[1766486684845,22.65873581,124.71,124.66,0.67]
[1766486685145,24.55685313,124.71,124.66,0.67]
[1766486686954,24.55685313,124.71,124.66,8.69155867]
[1766486687142,24.55685313,124.71,124.67,0.67]
[1766486687342,1.89811732,124.7,124.67,0.67]
[1766486695968,22.65873581,124.71,124.67,0.67]
[1766486696368,2.9679347,124.7,124.67,0.67]
[1766486701646,2.9679347,124.69,124.65,8.02237008]
[1766486701848,8.01941376,124.7,124.64,8.02284678]
[1766486702052,2.9679347,124.68,124.65,0.67]
[1766486703343,2.9679347,124.68,124.66,0.67]
[1766486704370,2.9679347,124.69,124.66,0.67]
[1766486706870,8.01924619,124.7,124.66,0.67]
[1766486707180,10.98718089,124.7,124.66,0.67]
[1766486709776,8.01924619,124.7,124.66,0.67]
[1766486711252,10.98718089,124.7,124.66,0.67]
[1766486726259,2.9679347,124.7,124.66,0.67]
[1766486726779,2.9679347,124.69,124.66,0.67]
[1766486732790,2.9679347,124.67,124.63,15.31]
[1766486733086,2.9679347,124.68,124.63,0.67]
[1766486733087,2.9679347,124.66,124.63,0.67]
[1766486733283,2.9679347,124.67,124.63,0.67]
[1766486733893,16.37354236,124.67,124.63,0.67]
[1766486734578,2.9679347,124.67,124.63,0.67]
[1766486742577,22.66098136,124.68,124.63,0.67]
[1766486742776,13.95993517,124.67,124.63,0.67]
[1766486743199,2.9679347,124.67,124.63,0.67]
[1766486745009,13.95993517,124.67,124.63,0.67]
[1766486749000,21.98112645,124.67,124.63,0.67]
[1766486749208,17.6079347,124.68,124.64,0.66]
[1766486751109,25.628492,124.68,124.64,0.66]
[1766486754812,8.0205573,124.68,124.64,0.66]
[1766486755016,22.6605573,124.68,124.64,0.66]
[1766486760603,24.56056622,124.68,124.64,0.66]
[1766486765526,22.6605573,124.68,124.64,0.66]
[1766486765722,24.56056622,124.68,124.64,0.66]
[1766486766242,10.99164075,124.7,124.66,2.56000892]
[1766486766528,16.54000892,124.71,124.67,0.66]
[1766486766825,26.97768188,124.71,124.67,0.66]
[1766486767229,34.99659842,124.71,124.67,0.66]
[1766486781148,25.07767296,124.71,124.68,0.66]
[1766486781340,18.45560388,124.73,124.69,0.66]
[1766486781541,34.9956128,124.73,124.69,0.66]
[1766486782745,25.07767296,124.73,124.69,8.01980895]
[1766486783049,24.55634783,124.75,124.71,0.66]
[1766486783225,10.43767296,124.74,124.71,0.66]
[1766486790166,24.55634783,124.75,124.71,0.66]
[1766486793559,34.99402079,124.75,124.71,0.66]
[1766486793860,1.90000892,124.74,124.71,0.66]
[1766486795464,9.91668694,124.74,124.71,0.66]
[1766486800068,1.90000892,124.73,124.69,0.66]
[1766486800764,1.90000892,124.72,124.69,0.66]
[1766486800964,1.90000892,124.73,124.69,0.66]
[1766486801161,8.01667802,124.74,124.7,0.66]
[1766486801376,34.99397548,124.75,124.7,0.66]
[1766486803164,25.07767296,124.75,124.71,0.66]
[1766486804370,14.64,124.75,124.71,0.66]
[1766486806871,14.64,124.75,124.72,0.66]
[1766486807042,18.45266881,124.77,124.72,0.66]
[1766486807246,26.97768188,124.77,124.72,0.66]
[1766486808162,34.99287708,124.77,124.72,0.66]
[1766486809887,10.43767296,124.77,124.73,0.66]
[1766486810385,14.31846339,124.78,124.73,0.66]
[1766486810690,4.40400571,124.78,124.76,0.66]
[1766486810879,3.68400571,124.78,124.75,16.54000892]
[1766486811078,3.68400571,124.78,124.76,0.66]
[1766486812072,3.68400571,124.78,124.77,0.66]
[1766486814872,0.71,124.77,124.75,0.66]
[1766486815065,6.29401463,124.78,124.75,0.66]
[1766486815490,4.39400571,124.78,124.75,0.66]
[1766486815874,3.68400571,124.78,124.77,0.66]
[1766486816070,1.32543912,124.78,124.77,0.66]
[1766486816393,0.60543912,124.78,124.77,8.67474713]
[1766486816604,0.71,124.8,124.77,8.67474713]
[1766486817590,0.71,124.8,124.77,0.66]
[1766486823697,3.6728676,124.8,124.77,0.66]
[1766486823998,0.71,124.8,124.77,0.66]
[1766486825380,3.6728676,124.8,124.77,0.66]
[1766486825604,3.6728676,124.8,124.75,8.01310177]
[1766486825605,0.71,124.78,124.75,14.77]
[1766486826091,0.71,124.78,124.75,22.78595281]
[1766486828009,0.66,124.79,124.75,22.65595281]
[1766486828305,0.66,124.79,124.76,0.13]
[1766486831802,8.01289134,124.8,124.76,0.13]
[1766486832110,10.97575894,124.8,124.76,0.13]
[1766486833883,0.66,124.79,124.76,0.13]
[1766486838613,3.6228676,124.79,124.76,0.13]
[1766486839114,0.66,124.79,124.76,0.13]
[1766486839809,0.66,124.79,124.72,2.9628676]
[1766486839810,0.66,124.77,124.72,2.9628676]
[1766486840112,0.66,124.77,124.74,0.66]
[1766486840786,2.9628676,124.77,124.74,0.66]
[1766486840986,3.6228676,124.77,124.74,0.66]
[1766486842598,0.66,124.77,124.74,0.66]
[1766486845313,0.66,124.77,124.75,0.66]
[1766486845917,0.66,124.78,124.75,0.66]
[1766486848601,3.6228676,124.78,124.75,0.66]
[1766486849426,2.9628676,124.78,124.75,0.66]
[1766486849721,3.6228676,124.78,124.75,0.66]
[1766486849886,2.9628676,124.78,124.75,0.66]
[1766486850205,0.66,124.77,124.74,0.66]
[1766486853018,0.66,124.77,124.74,8.67663844]
[1766486858321,11.10767296,124.79,124.75,0.69]
[1766486858817,10.43767296,124.79,124.75,0.69]
[1766486859004,0.67,124.78,124.75,0.69]
[1766486859821,0.67,124.78,124.75,18.2928676]
[1766486860822,0.67,124.78,124.75,8.70586592]
[1766486864025,0.67,124.78,124.75,0.69]
[1766486864225,0.67,124.78,124.74,13.40054056]
[1766486864428,0.67,124.77,124.74,0.69]
[1766486865730,2.9628676,124.77,124.74,0.69]
[1766486865930,0.67,124.76,124.74,0.69]
[1766486867027,0.67,124.77,124.74,0.69]
[1766486871532,0.67,124.77,124.74,8.01663404]